[Event "Titled Tuesday Blitz December 20 Late 2022"]
[White "Rian, Kapriaga"]
[Black "Sivakumar, Shaaketh"]
[WhiteFideId "7103263"]
[BlackFideId "30940176"]
[WhiteElo "2338"]
[BlackElo "2174"]
[Result "1-0"]
[Round "05"]
[TimeControl "180+1"]
[Date "2022.12.21"]
[WhiteClock "0:00:07"]
[BlackClock "0:00:01"]

1. d4 {[%clk 0:03:00]}  e6 {[%clk 0:03:00]} 2. Nf3 {[%clk 0:03:00]}  Nf6 {[%clk 0:02:58]} 3. Bf4 {[%clk 0:02:59]}  b6 {[%clk 0:02:50]} 4. e3 {[%clk 0:02:59]}  Bb7 {[%clk 0:02:48]} 5. Bd3 {[%clk 0:02:56]}  c5 {[%clk 0:02:48]} 6. O-O {[%clk 0:02:51]}  d5 {[%clk 0:02:46]} 7. c3 {[%clk 0:02:49]}  Bd6 {[%clk 0:02:44]} 8. Ne5 {[%clk 0:02:48]}  Qc7 {[%clk 0:02:41]} 9. Nd2 {[%clk 0:02:44]}  Nbd7 {[%clk 0:02:40]} 10. Nxd7 {[%clk 0:02:40]}  Qxd7 {[%clk 0:02:40]} 11. Bxd6 {[%clk 0:02:38]}  Qxd6 {[%clk 0:02:41]} 12. f4 {[%clk 0:02:38]}  Ne4 {[%clk 0:02:40]} 13. Nxe4 {[%clk 0:02:30]}  dxe4 {[%clk 0:02:40]} 14. Bb5+ {[%clk 0:02:29]}  Bc6 {[%clk 0:02:40]} 15. Qa4 {[%clk 0:02:28]}  Bxb5 {[%clk 0:02:25]} 16. Qxb5+ {[%clk 0:02:27]}  Ke7 {[%clk 0:02:26]} 17. dxc5 {[%clk 0:02:12]}  Qxc5 {[%clk 0:02:27]} 18. Qxc5+ {[%clk 0:02:05]}  bxc5 {[%clk 0:02:28]} 19. Rfd1 {[%clk 0:01:53]}  Rhd8 {[%clk 0:02:27]} 20. Kf2 {[%clk 0:01:53]}  Rd3 {[%clk 0:02:25]} 21. Ke2 {[%clk 0:01:49]}  c4 {[%clk 0:02:23]} 22. Rd2 {[%clk 0:01:46]}  Rad8 {[%clk 0:02:19]} 23. Rad1 {[%clk 0:01:45]}  f6 {[%clk 0:02:16]} 24. b3 {[%clk 0:01:36]}  cxb3 {[%clk 0:01:16]} 25. axb3 {[%clk 0:01:32]}  Rb8 {[%clk 0:01:12]} 26. Ra1 {[%clk 0:00:22]}  Rxb3 {[%clk 0:00:26]} 27. Rxa7+ {[%clk 0:00:19]}  Kf8 {[%clk 0:00:25]} 28. Rxd3 {[%clk 0:00:19]}  exd3+ {[%clk 0:00:26]} 29. Kxd3 {[%clk 0:00:19]}  Rb2 {[%clk 0:00:27]} 30. c4 {[%clk 0:00:13]}  Rxg2 {[%clk 0:00:25]} 31. c5 {[%clk 0:00:12]}  Ke8 {[%clk 0:00:20]} 32. c6 {[%clk 0:00:12]}  Kd8 {[%clk 0:00:19]} 33. Kd4 {[%clk 0:00:10]}  h5 {[%clk 0:00:13]} 34. h4 {[%clk 0:00:08]}  Rd2+ {[%clk 0:00:11]} 35. Kc5 {[%clk 0:00:08]}  Rc2+ {[%clk 0:00:05]} 36. Kd6 {[%clk 0:00:08]}  Rd2+ {[%clk 0:00:06]} 37. Kxe6 {[%clk 0:00:08]}  Rg2 {[%clk 0:00:05]} 38. e4 {[%clk 0:00:07]}  Kc8 {[%clk 0:00:03]} 39. Kd6 {[%clk 0:00:06]}  Rd2+ {[%clk 0:00:03]} 40. Ke6 {[%clk 0:00:05]}  Rg2 {[%clk 0:00:04]} 41. e5 {[%clk 0:00:05]}  fxe5 {[%clk 0:00:04]} 42. fxe5 {[%clk 0:00:05]}  g5 {[%clk 0:00:05]} 43. hxg5 {[%clk 0:00:05]}  Rxg5 {[%clk 0:00:05]} 44. Rh7 {[%clk 0:00:04]}  Rg6+ {[%clk 0:00:04]} 45. Kd5 {[%clk 0:00:04]}  Rg5 {[%clk 0:00:05]} 46. Kd6 {[%clk 0:00:04]}  Rg6+ {[%clk 0:00:03]} 47. e6 {[%clk 0:00:05]}  Rg8 {[%clk 0:00:03]} 48. Rxh5 {[%clk 0:00:05]}  Rd8+ {[%clk 0:00:03]} 49. Kc5 {[%clk 0:00:05]}  Re8 {[%clk 0:00:03]} 50. Rh7 {[%clk 0:00:03]}  Rxe6 {[%clk 0:00:02]} 51. Kb6 {[%clk 0:00:03]}  Re8 {[%clk 0:00:01]} 52. Rc7+ {[%clk 0:00:02]}  Kb8 {[%clk 0:00:01]} 53. Rb7+ {[%clk 0:00:03]}  Ka8 {[%clk 0:00:01]} 54. Ra7+ {[%clk 0:00:03]}  Kb8 {[%clk 0:00:02]} 55. c7+ {[%clk 0:00:04]}  Kc8 {[%clk 0:00:03]} 56. Ra8+ {[%clk 0:00:04]}  Kd7 {[%clk 0:00:04]} 57. Rxe8 {[%clk 0:00:04]}  Kxe8 {[%clk 0:00:05]} 58. c8=Q+ {[%clk 0:00:04]}  Ke7 {[%clk 0:00:06]} 59. Qc7+ {[%clk 0:00:04]}  Kf6 {[%clk 0:00:06]} 60. Qc6+ {[%clk 0:00:04]}  Kg5 {[%clk 0:00:07]} 61. Kc5 {[%clk 0:00:05]}  Kf5 {[%clk 0:00:08]} 62. Qd6 {[%clk 0:00:05]}  Ke4 {[%clk 0:00:09]} 63. Qd5+ {[%clk 0:00:06]}  Kf4 {[%clk 0:00:09]} 64. Qe6 {[%clk 0:00:05]}  Kg3 {[%clk 0:00:10]} 65. Qf5 {[%clk 0:00:05]}  Kh4 {[%clk 0:00:11]} 66. Qg6 {[%clk 0:00:06]}  Kh3 {[%clk 0:00:11]} 67. Kd4 {[%clk 0:00:06]}  Kh4 {[%clk 0:00:12]} 68. Ke4 {[%clk 0:00:06]}  Kh3 {[%clk 0:00:13]} 69. Kf3 {[%clk 0:00:07]}  Kh4 {[%clk 0:00:01]} 70. Qg4# {[%clk 0:00:07]} 1-0


[Site "https://www.chess.com"]

[Event "Titled Tuesday Blitz December 20 Late 2022"]
[White "Rodriguez Santiago, Jaime"]
[Black "Fiorito, Joaquin"]
[WhiteFideId "3100898"]
[BlackFideId "180173"]
[WhiteElo "2025"]
[BlackElo "2157"]
[Result "0-1"]
[Round "05"]
[TimeControl "180+1"]
[Date "2022.12.21"]
[WhiteClock "0:00:15"]
[BlackClock "0:00:52"]

1. c4 {[%clk 0:03:00]}  e6 {[%clk 0:02:59]} 2. Nf3 {[%clk 0:02:56]}  d5 {[%clk 0:03:00]} 3. g3 {[%clk 0:02:56]}  Nf6 {[%clk 0:03:00]} 4. Bg2 {[%clk 0:02:56]}  dxc4 {[%clk 0:02:59]} 5. a4 {[%clk 0:02:55]}  Nc6 {[%clk 0:02:51]} 6. O-O {[%clk 0:02:54]}  Bd6 {[%clk 0:02:45]} 7. Na3 {[%clk 0:02:54]}  Bxa3 {[%clk 0:02:44]} 8. Rxa3 {[%clk 0:02:53]}  O-O {[%clk 0:02:45]} 9. Qc2 {[%clk 0:02:52]}  e5 {[%clk 0:02:43]} 10. Qxc4 {[%clk 0:02:45]}  Be6 {[%clk 0:02:43]} 11. Qc2 {[%clk 0:02:31]}  Bd5 {[%clk 0:02:42]} 12. d3 {[%clk 0:02:10]}  Bxf3 {[%clk 0:02:31]} 13. exf3 {[%clk 0:02:05]}  Nd4 {[%clk 0:02:29]} 14. Qc5 {[%clk 0:02:02]}  Re8 {[%clk 0:02:27]} 15. Bg5 {[%clk 0:01:58]}  c6 {[%clk 0:02:25]} 16. Re1 {[%clk 0:01:52]}  h6 {[%clk 0:02:24]} 17. Be3 {[%clk 0:01:46]}  Qd5 {[%clk 0:02:01]} 18. Qxd5 {[%clk 0:01:36]}  Nxd5 {[%clk 0:02:01]} 19. Bxd4 {[%clk 0:01:34]}  exd4 {[%clk 0:02:02]} 20. Re4 {[%clk 0:01:28]}  c5 {[%clk 0:01:49]} 21. f4 {[%clk 0:01:27]}  Nb4 {[%clk 0:01:47]} 22. Rb3 {[%clk 0:01:06]}  b6 {[%clk 0:01:38]} 23. Rxd4 {[%clk 0:00:54]}  Rad8 {[%clk 0:01:32]} 24. Rxd8 {[%clk 0:00:49]}  Rxd8 {[%clk 0:01:32]} 25. Bf1 {[%clk 0:00:48]}  Rd4 {[%clk 0:01:30]} 26. a5 {[%clk 0:00:45]}  b5 {[%clk 0:01:08]} 27. f3 {[%clk 0:00:43]}  Kf8 {[%clk 0:01:07]} 28. Kf2 {[%clk 0:00:43]}  Ke7 {[%clk 0:01:07]} 29. Be2 {[%clk 0:00:43]}  Kd6 {[%clk 0:01:07]} 30. h4 {[%clk 0:00:42]}  a6 {[%clk 0:01:07]} 31. Rc3 {[%clk 0:00:36]}  Nc6 {[%clk 0:01:07]} 32. Ke3 {[%clk 0:00:35]}  Rb4 {[%clk 0:01:04]} 33. b3 {[%clk 0:00:34]}  Nxa5 {[%clk 0:01:04]} 34. Bd1 {[%clk 0:00:28]}  Nc6 {[%clk 0:01:03]} 35. g4 {[%clk 0:00:28]}  a5 {[%clk 0:00:58]} 36. f5 {[%clk 0:00:27]}  Nd4 {[%clk 0:00:56]} 37. f4 {[%clk 0:00:26]}  Nc6 {[%clk 0:00:53]} 38. g5 {[%clk 0:00:21]}  hxg5 {[%clk 0:00:52]} 39. hxg5 {[%clk 0:00:21]}  Nd4 {[%clk 0:00:53]} 40. Bh5 {[%clk 0:00:20]}  Nxf5+ {[%clk 0:00:52]} 41. Kd2 {[%clk 0:00:17]}  g6 {[%clk 0:00:53]} 42. Bg4 {[%clk 0:00:17]}  Nd4 {[%clk 0:00:53]} 43. Bc8 {[%clk 0:00:17]}  Nxb3+ {[%clk 0:00:52]} 44. Ke3 {[%clk 0:00:17]}  Nd4 {[%clk 0:00:52]} 45. Rc1 {[%clk 0:00:16]}  a4 {[%clk 0:00:52]} 46. Rh1 {[%clk 0:00:17]}  a3 {[%clk 0:00:51]} 47. Rh7 {[%clk 0:00:18]}  a2 {[%clk 0:00:51]} 48. Rxf7 {[%clk 0:00:19]}  a1=Q {[%clk 0:00:51]} 49. Rd7+ {[%clk 0:00:18]}  Kc6 {[%clk 0:00:52]} 50. Rg7 {[%clk 0:00:15]}  Qe1# {[%clk 0:00:52]} 0-1


[Site "https://www.chess.com"]

[Event "Titled Tuesday Blitz December 20 Late 2022"]
[White "Roman, Rodrigo"]
[Black "Curtis, John"]
[WhiteFideId "3701220"]
[BlackFideId "3200256"]
[WhiteElo "1995"]
[BlackElo "2203"]
[Result "1-0"]
[Round "05"]
[TimeControl "180+1"]
[Date "2022.12.21"]
[WhiteClock "0:00:13"]
[BlackClock "0:00:37"]

1. e4 {[%clk 0:02:43]}  c5 {[%clk 0:02:58]} 2. Ke2 {[%clk 0:02:11]}  Nc6 {[%clk 0:02:56]} 3. Nf3 {[%clk 0:02:05]}  d6 {[%clk 0:02:54]} 4. d3 {[%clk 0:02:04]}  Bg4 {[%clk 0:02:54]} 5. c3 {[%clk 0:01:46]}  e6 {[%clk 0:02:48]} 6. h3 {[%clk 0:01:46]}  Bh5 {[%clk 0:02:42]} 7. Be3 {[%clk 0:01:35]}  d5 {[%clk 0:02:38]} 8. Nd2 {[%clk 0:01:22]}  Nf6 {[%clk 0:02:37]} 9. g4 {[%clk 0:01:16]}  Bg6 {[%clk 0:02:36]} 10. e5 {[%clk 0:01:17]}  Nd7 {[%clk 0:02:22]} 11. d4 {[%clk 0:01:16]}  f6 {[%clk 0:02:23]} 12. exf6 {[%clk 0:01:14]}  gxf6 {[%clk 0:02:14]} 13. Ke1 {[%clk 0:01:14]}  e5 {[%clk 0:02:08]} 14. dxe5 {[%clk 0:01:13]}  Ndxe5 {[%clk 0:02:03]} 15. Be2 {[%clk 0:00:54]}  d4 {[%clk 0:01:51]} 16. cxd4 {[%clk 0:00:47]}  cxd4 {[%clk 0:01:51]} 17. Bf4 {[%clk 0:00:20]}  d3 {[%clk 0:01:47]} 18. Bf1 {[%clk 0:00:13]}  Bb4 {[%clk 0:01:36]} 19. Nxe5 {[%clk 0:00:13]}  fxe5 {[%clk 0:01:26]} 20. Be3 {[%clk 0:00:13]}  Qd5 {[%clk 0:01:23]} 21. Rg1 {[%clk 0:00:09]}  Nd4 {[%clk 0:01:23]} 22. Bg2 {[%clk 0:00:08]}  Nc2+ {[%clk 0:01:23]} 23. Qxc2 {[%clk 0:00:06]}  Qxg2 {[%clk 0:01:21]} 24. Qa4+ {[%clk 0:00:05]}  Qc6 {[%clk 0:01:21]} 25. Qxb4 {[%clk 0:00:05]}  a5 {[%clk 0:01:10]} 26. Qc5 {[%clk 0:00:05]}  Qxc5 {[%clk 0:01:09]} 27. Bxc5 {[%clk 0:00:05]}  Rc8 {[%clk 0:01:09]} 28. Be3 {[%clk 0:00:05]}  Rc2 {[%clk 0:01:09]} 29. b3 {[%clk 0:00:06]}  Kf7 {[%clk 0:01:07]} 30. Rg3 {[%clk 0:00:06]}  Rhc8 {[%clk 0:01:05]} 31. Nc4 {[%clk 0:00:06]}  Ke6 {[%clk 0:01:01]} 32. h4 {[%clk 0:00:06]}  b5 {[%clk 0:00:57]} 33. h5 {[%clk 0:00:04]}  Be4 {[%clk 0:00:52]} 34. Na3 {[%clk 0:00:04]}  Re2+ {[%clk 0:00:51]} 35. Kd1 {[%clk 0:00:05]}  b4 {[%clk 0:00:47]} 36. Nc4 {[%clk 0:00:05]}  Rxc4 {[%clk 0:00:47]} 37. bxc4 {[%clk 0:00:06]}  Rc2 {[%clk 0:00:47]} 38. Bd2 {[%clk 0:00:06]}  Rxc4 {[%clk 0:00:47]} 39. f3 {[%clk 0:00:06]}  Bd5 {[%clk 0:00:47]} 40. g5 {[%clk 0:00:07]}  e4 {[%clk 0:00:47]} 41. g6 {[%clk 0:00:07]}  hxg6 {[%clk 0:00:45]} 42. hxg6 {[%clk 0:00:07]}  Rc8 {[%clk 0:00:46]} 43. g7 {[%clk 0:00:07]}  Rg8 {[%clk 0:00:46]} 44. fxe4 {[%clk 0:00:08]}  Bxe4 {[%clk 0:00:46]} 45. Rc1 {[%clk 0:00:09]}  Bd5 {[%clk 0:00:46]} 46. Rc5 {[%clk 0:00:08]}  Bxa2 {[%clk 0:00:45]} 47. Rxa5 {[%clk 0:00:08]}  Bb3+ {[%clk 0:00:44]} 48. Ke1 {[%clk 0:00:09]}  Bd5 {[%clk 0:00:44]} 49. Bxb4 {[%clk 0:00:08]}  d2+ {[%clk 0:00:43]} 50. Kxd2 {[%clk 0:00:08]}  Rd8 {[%clk 0:00:43]} 51. g8=Q+ {[%clk 0:00:07]}  Rxg8 {[%clk 0:00:41]} 52. Rxg8 {[%clk 0:00:08]}  Ke5 {[%clk 0:00:41]} 53. Re8+ {[%clk 0:00:06]}  Kd4 {[%clk 0:00:38]} 54. Rd8 {[%clk 0:00:07]}  Kc4 {[%clk 0:00:38]} 55. Raxd5 {[%clk 0:00:08]}  Kxb4 {[%clk 0:00:37]} 56. Rc8 {[%clk 0:00:09]}  Ka4 {[%clk 0:00:36]} 57. Rd7 {[%clk 0:00:09]}  Kb5 {[%clk 0:00:36]} 58. Rdd8 {[%clk 0:00:10]}  Ka6 {[%clk 0:00:36]} 59. Kd3 {[%clk 0:00:10]}  Kb7 {[%clk 0:00:36]} 60. Rc1 {[%clk 0:00:11]}  Kb6 {[%clk 0:00:37]} 61. Rh8 {[%clk 0:00:12]}  Kb7 {[%clk 0:00:36]} 62. Rh2 {[%clk 0:00:13]}  Kb6 {[%clk 0:00:36]} 63. Rb2+ {[%clk 0:00:14]}  Ka5 {[%clk 0:00:37]} 64. Kc4 {[%clk 0:00:14]}  Ka4 {[%clk 0:00:37]} 65. Rb8 {[%clk 0:00:15]}  Ka3 {[%clk 0:00:37]} 66. Ra1# {[%clk 0:00:13]} 1-0


[Site "https://www.chess.com"]

[Event "Titled Tuesday Blitz December 20 Late 2022"]
[White "Saveliev, Alexei"]
[Black "Yuan, Qingyu"]
[WhiteFideId "24128546"]
[BlackFideId "8609772"]
[WhiteElo "2290"]
[BlackElo "2359"]
[Result "1-0"]
[Round "05"]
[TimeControl "180+1"]
[Date "2022.12.21"]
[WhiteClock "0:02:05"]
[BlackClock "0:00:04"]

1. c4 {[%clk 0:03:00]}  Nf6 {[%clk 0:02:57]} 2. Nc3 {[%clk 0:03:01]}  e6 {[%clk 0:02:57]} 3. e4 {[%clk 0:03:01]}  d5 {[%clk 0:02:57]} 4. e5 {[%clk 0:03:02]}  d4 {[%clk 0:02:57]} 5. exf6 {[%clk 0:03:02]}  dxc3 {[%clk 0:02:58]} 6. bxc3 {[%clk 0:03:03]}  Qxf6 {[%clk 0:02:55]} 7. d4 {[%clk 0:03:04]}  b6 {[%clk 0:02:52]} 8. Be2 {[%clk 0:03:03]}  Bb7 {[%clk 0:02:52]} 9. Bf3 {[%clk 0:03:04]}  Bxf3 {[%clk 0:02:40]} 10. Nxf3 {[%clk 0:03:04]}  Bd6 {[%clk 0:02:36]} 11. Qa4+ {[%clk 0:03:05]}  c6 {[%clk 0:02:29]} 12. O-O {[%clk 0:03:01]}  O-O {[%clk 0:02:26]} 13. Bg5 {[%clk 0:03:00]}  Qf5 {[%clk 0:02:26]} 14. Rad1 {[%clk 0:02:59]}  Rc8 {[%clk 0:02:13]} 15. Rfe1 {[%clk 0:02:55]}  Nd7 {[%clk 0:02:12]} 16. Bh4 {[%clk 0:02:55]}  h6 {[%clk 0:02:06]} 17. Bg3 {[%clk 0:02:54]}  Bxg3 {[%clk 0:01:55]} 18. hxg3 {[%clk 0:02:55]}  b5 {[%clk 0:01:50]} 19. Qa6 {[%clk 0:02:52]}  bxc4 {[%clk 0:01:43]} 20. Qxc4 {[%clk 0:02:53]}  Qd5 {[%clk 0:01:41]} 21. Qa6 {[%clk 0:02:51]}  Rcb8 {[%clk 0:01:34]} 22. c4 {[%clk 0:02:48]}  Qd6 {[%clk 0:01:28]} 23. Ne5 {[%clk 0:02:43]}  Nxe5 {[%clk 0:01:03]} 24. Rxe5 {[%clk 0:02:44]}  Rb4 {[%clk 0:00:45]} 25. Rc5 {[%clk 0:02:43]}  Rb6 {[%clk 0:00:43]} 26. Qa4 {[%clk 0:02:43]}  a6 {[%clk 0:00:38]} 27. Ra5 {[%clk 0:02:42]}  Qc7 {[%clk 0:00:36]} 28. d5 {[%clk 0:02:31]}  cxd5 {[%clk 0:00:30]} 29. cxd5 {[%clk 0:02:32]}  Rd6 {[%clk 0:00:26]} 30. dxe6 {[%clk 0:02:30]}  Rxd1+ {[%clk 0:00:24]} 31. Qxd1 {[%clk 0:02:31]}  Qxa5 {[%clk 0:00:19]} 32. exf7+ {[%clk 0:02:32]}  Kh8 {[%clk 0:00:19]} 33. Qd6 {[%clk 0:02:28]}  Qe1+ {[%clk 0:00:16]} 34. Kh2 {[%clk 0:02:27]}  Qxf2 {[%clk 0:00:16]} 35. Qe7 {[%clk 0:02:28]}  Qf5 {[%clk 0:00:02]} 36. a4 {[%clk 0:02:25]}  Rc8 {[%clk 0:00:02]} 37. a5 {[%clk 0:02:25]}  Kh7 {[%clk 0:00:02]} 38. Qe8 {[%clk 0:02:24]}  Qg4 {[%clk 0:00:02]} 39. f8=Q {[%clk 0:02:22]}  Rxe8 {[%clk 0:00:02]} 40. Qxe8 {[%clk 0:02:23]}  Qg6 {[%clk 0:00:02]} 41. Qd8 {[%clk 0:02:18]}  Qh5+ {[%clk 0:00:02]} 42. Kg1 {[%clk 0:02:18]}  Qc5+ {[%clk 0:00:02]} 43. Kh2 {[%clk 0:02:18]}  Qb5 {[%clk 0:00:03]} 44. Qb6 {[%clk 0:02:14]}  Qh5+ {[%clk 0:00:03]} 45. Kg1 {[%clk 0:02:14]}  Qd1+ {[%clk 0:00:03]} 46. Kf2 {[%clk 0:02:15]}  Qd3 {[%clk 0:00:03]} 47. Kg1 {[%clk 0:02:16]}  Qe2 {[%clk 0:00:03]} 48. Qf2 {[%clk 0:02:11]}  Qb5 {[%clk 0:00:02]} 49. Qc2+ {[%clk 0:02:09]}  Kg8 {[%clk 0:00:02]} 50. Qd2 {[%clk 0:02:09]}  Kf7 {[%clk 0:00:02]} 51. Qf2+ {[%clk 0:02:07]}  Ke6 {[%clk 0:00:03]} 52. Qd4 {[%clk 0:02:03]}  Qe5 {[%clk 0:00:03]} 53. Qc4+ {[%clk 0:02:02]}  Kf5 {[%clk 0:00:02]} 54. Qxa6 {[%clk 0:02:01]}  Qa1+ {[%clk 0:00:02]} 55. Qf1+ {[%clk 0:02:01]}  Qxf1+ {[%clk 0:00:02]} 56. Kxf1 {[%clk 0:02:02]}  Ke5 {[%clk 0:00:02]} 57. a6 {[%clk 0:02:02]}  Ke6 {[%clk 0:00:03]} 58. a7 {[%clk 0:02:03]}  Kf5 {[%clk 0:00:03]} 59. a8=Q {[%clk 0:02:04]}  h5 {[%clk 0:00:03]} 60. Qf3+ {[%clk 0:02:04]}  Kg5 {[%clk 0:00:03]} 61. Qf4+ {[%clk 0:02:04]}  Kg6 {[%clk 0:00:04]} 62. Qe4+ {[%clk 0:02:05]}  Kh6 {[%clk 0:00:04]} 63. Kf2 {[%clk 0:02:06]}  Kg5 {[%clk 0:00:04]} 64. Qe5+ {[%clk 0:02:06]}  Kh6 {[%clk 0:00:03]} 65. Kf3 {[%clk 0:02:06]}  g6 {[%clk 0:00:04]} 66. Kf4 {[%clk 0:02:06]}  h4 {[%clk 0:00:04]} 67. Qh8# {[%clk 0:02:05]} 1-0


[Site "https://www.chess.com"]

[Event "Titled Tuesday Blitz December 20 Late 2022"]
[White "Shimanov, Aleksandr"]
[Black "Bjelobrk, Igor"]
[WhiteFideId "4198603"]
[BlackFideId "4300726"]
[WhiteElo "2605"]
[BlackElo "2335"]
[Result "1-0"]
[Round "05"]
[TimeControl "180+1"]
[Date "2022.12.20"]
[WhiteClock "0:00:13"]
[BlackClock "0:00:11"]

1. e4 {[%clk 0:03:00]}  e5 {[%clk 0:02:51]} 2. Nf3 {[%clk 0:03:00]}  Nc6 {[%clk 0:02:51]} 3. Nc3 {[%clk 0:03:01]}  Nf6 {[%clk 0:02:50]} 4. h3 {[%clk 0:03:02]}  d5 {[%clk 0:02:41]} 5. exd5 {[%clk 0:03:03]}  Nxd5 {[%clk 0:02:40]} 6. Bb5 {[%clk 0:03:04]}  Nxc3 {[%clk 0:02:37]} 7. bxc3 {[%clk 0:03:05]}  Bd6 {[%clk 0:02:37]} 8. O-O {[%clk 0:03:05]}  O-O {[%clk 0:02:36]} 9. d4 {[%clk 0:03:06]}  exd4 {[%clk 0:02:35]} 10. cxd4 {[%clk 0:03:06]}  Ne7 {[%clk 0:02:27]} 11. Re1 {[%clk 0:03:03]}  c6 {[%clk 0:02:25]} 12. Bd3 {[%clk 0:03:01]}  Nd5 {[%clk 0:02:23]} 13. c4 {[%clk 0:02:55]}  Nf4 {[%clk 0:02:22]} 14. Bf1 {[%clk 0:02:39]}  Qf6 {[%clk 0:02:20]} 15. Bb2 {[%clk 0:02:35]}  Bf5 {[%clk 0:02:16]} 16. Ne5 {[%clk 0:02:32]}  Rad8 {[%clk 0:02:08]} 17. Qf3 {[%clk 0:02:32]}  Ng6 {[%clk 0:01:46]} 18. Re3 {[%clk 0:01:43]}  Bxe5 {[%clk 0:01:40]} 19. dxe5 {[%clk 0:01:43]}  Qe6 {[%clk 0:01:40]} 20. g4 {[%clk 0:01:39]}  Bc2 {[%clk 0:01:33]} 21. Rc1 {[%clk 0:01:36]}  Ba4 {[%clk 0:01:14]} 22. Ba3 {[%clk 0:01:15]}  Rfe8 {[%clk 0:01:09]} 23. Bd6 {[%clk 0:01:14]}  f6 {[%clk 0:00:57]} 24. c5 {[%clk 0:01:14]}  Bb5 {[%clk 0:00:34]} 25. Bxb5 {[%clk 0:01:09]}  cxb5 {[%clk 0:00:35]} 26. exf6 {[%clk 0:00:24]}  Qxf6 {[%clk 0:00:36]} 27. Qd5+ {[%clk 0:00:22]}  Qf7 {[%clk 0:00:32]} 28. Qxf7+ {[%clk 0:00:21]}  Kxf7 {[%clk 0:00:33]} 29. Rb3 {[%clk 0:00:20]}  a6 {[%clk 0:00:31]} 30. a4 {[%clk 0:00:20]}  b6 {[%clk 0:00:15]} 31. Bc7 {[%clk 0:00:13]}  bxa4 {[%clk 0:00:15]} 32. Rf3+ {[%clk 0:00:12]}  Kg8 {[%clk 0:00:11]} 33. Bxd8 {[%clk 0:00:13]} 1-0


[Site "https://www.chess.com"]